[Event "*** Titled Tuesday Blitz"]
[Site "Chess.com"]
[Date "2020.11.03"]
[Round "1"]
[White "lucasmito"]
[Black "oogee"]
[Result "1-0"]
[WhiteElo "2546"]
[BlackElo "2206"]
[TimeControl "180+1"]
[EndTime "10:06:10 PST"]
[Termination "lucasmito won by resignation"]

1. e4 {[%clk 0:02:53.2]} 1... c5 {[%clk 0:02:59.5]} 2. Nf3 {[%clk 0:02:52.9]}
2... d6 {[%clk 0:02:57.5]} 3. Nc3 {[%clk 0:02:53.8]} 3... Nc6 {[%clk 0:02:52.3]}
4. d4 {[%clk 0:02:52.6]} 4... cxd4 {[%clk 0:02:51.8]} 5. Nxd4 {[%clk 0:02:53.5]}
5... g6 {[%clk 0:02:50.7]} 6. Be3 {[%clk 0:02:52.4]} 6... Bg7 {[%clk 0:02:50.1]}
7. Qd2 {[%clk 0:02:52.9]} 7... Nf6 {[%clk 0:02:44]} 8. f3 {[%clk 0:02:51.7]}
8... h5 {[%clk 0:02:37.2]} 9. O-O-O {[%clk 0:02:27.8]} 9... Bd7 {[%clk
0:02:30.5]} 10. Kb1 {[%clk 0:02:27.3]} 10... a6 {[%clk 0:02:28]} 11. Bc4 {[%clk
0:02:24.2]} 11... b5 {[%clk 0:02:24.5]} 12. Bb3 {[%clk 0:02:16.7]} 12... Na5
{[%clk 0:02:20.8]} 13. Rhe1 {[%clk 0:02:10.9]} 13... Nc4 {[%clk 0:02:16.8]} 14.
Bxc4 {[%clk 0:02:06.7]} 14... bxc4 {[%clk 0:02:16.6]} 15. Nd5 {[%clk 0:02:01.7]}
15... Rb8 {[%clk 0:02:04.2]} 16. Qc3 {[%clk 0:01:55.6]} 16... Qc8 {[%clk
0:01:56.5]} 17. Bg5 {[%clk 0:01:53.4]} 17... Qc5 {[%clk 0:01:39.2]} 18. Bxf6
{[%clk 0:01:39.6]} 18... exf6 {[%clk 0:01:37.6]} 19. Ne2 {[%clk 0:01:37.5]}
19... Be6 {[%clk 0:01:05.1]} 20. Nef4 {[%clk 0:01:30.1]} 20... O-O {[%clk
0:01:03.5]} 21. Nxf6+ {[%clk 0:00:56.3]} 21... Kh8 {[%clk 0:01:02.2]} 22. e5
{[%clk 0:00:54.3]} 22... dxe5 {[%clk 0:00:59.5]} 23. Ne4 {[%clk 0:00:54.4]}
23... Qb6 {[%clk 0:00:55.5]} 24. Nxe6 {[%clk 0:00:47.3]} 24... Qxe6 {[%clk
0:00:56.4]} 25. Rd6 {[%clk 0:00:45]} 25... Qe7 {[%clk 0:00:54.7]} 26. Red1
{[%clk 0:00:38.6]} 26... f5 {[%clk 0:00:51.5]} 27. Rd7 {[%clk 0:00:38.7]} 27...
Qe8 {[%clk 0:00:45.6]} 28. Ng5 {[%clk 0:00:35.9]} 28... Rd8 {[%clk 0:00:40.4]}
29. Rxd8 {[%clk 0:00:35.2]} 29... Qxd8 {[%clk 0:00:40.6]} 30. Rxd8 {[%clk
0:00:34.8]} 30... Rxd8 {[%clk 0:00:40.8]} 31. Nf7+ {[%clk 0:00:35.2]} 31... Kg8
{[%clk 0:00:35.4]} 32. Nxd8 {[%clk 0:00:36.1]} 1-0

[Event "*** Titled Tuesday Blitz"]
[Site "Chess.com"]
[Date "2020.11.03"]
[Round "1"]
[White "sboshaon21"]
[Black "TST2014"]
[Result "0-1"]
[WhiteElo "2021"]
[BlackElo "2490"]
[TimeControl "180+1"]
[EndTime "10:06:10 PST"]
[Termination "TST2014 won by resignation"]

1. d4 {[%clk 0:03:00.6]} 1... Nf6 {[%clk 0:02:57.6]} 2. c4 {[%clk 0:03:00.1]}
2... c5 {[%clk 0:02:56.6]} 3. Nf3 {[%clk 0:02:53.4]} 3... cxd4 {[%clk
0:02:55.6]} 4. Nxd4 {[%clk 0:02:54.3]} 4... b6 {[%clk 0:02:54.5]} 5. Nc3 {[%clk
0:02:53.7]} 5... Bb7 {[%clk 0:02:51.2]} 6. f3 {[%clk 0:02:53.4]} 6... e6 {[%clk
0:02:48.7]} 7. e4 {[%clk 0:02:53.2]} 7... d6 {[%clk 0:02:48.8]} 8. Be3 {[%clk
0:02:50.2]} 8... Be7 {[%clk 0:02:48.6]} 9. Be2 {[%clk 0:02:47.8]} 9... O-O
{[%clk 0:02:48.1]} 10. O-O {[%clk 0:02:46.8]} 10... a6 {[%clk 0:02:47.6]} 11.
Rc1 {[%clk 0:02:44.5]} 11... Nbd7 {[%clk 0:02:47]} 12. Kh1 {[%clk 0:02:37.9]}
12... Rc8 {[%clk 0:02:45]} 13. b4 {[%clk 0:01:54.7]} 13... Ne5 {[%clk
0:02:40.4]} 14. Qb3 {[%clk 0:01:44.4]} 14... Qc7 {[%clk 0:02:39.9]} 15. Nb1
{[%clk 0:01:07.5]} 15... Rfe8 {[%clk 0:02:29.7]} 16. a4 {[%clk 0:01:00.8]} 16...
Bd8 {[%clk 0:02:20.7]} 17. Nd2 {[%clk 0:00:57.5]} 17... Qb8 {[%clk 0:02:19.7]}
18. Bg1 {[%clk 0:00:53.9]} 18... Bc7 {[%clk 0:02:18.7]} 19. Rfd1 {[%clk
0:00:46.9]} 19... d5 {[%clk 0:02:12.7]} 20. exd5 {[%clk 0:00:35.7]} 20... exd5
{[%clk 0:02:12.4]} 21. Nf5 {[%clk 0:00:19.4]} 21... dxc4 {[%clk 0:02:00.6]} 22.
Nxc4 {[%clk 0:00:18.5]} 22... Ng6 {[%clk 0:01:44.8]} 23. Bd3 {[%clk 0:00:17.7]}
23... Bd5 {[%clk 0:01:39.7]} 24. Qb1 {[%clk 0:00:15.7]} 24... Nf4 {[%clk
0:01:38.9]} 25. Bf1 {[%clk 0:00:15.2]} 25... Ne2 {[%clk 0:01:35]} 26. Bxe2
{[%clk 0:00:14.2]} 26... Rxe2 {[%clk 0:01:35.9]} 27. Nd4 {[%clk 0:00:12.6]}
27... Ree8 {[%clk 0:01:30.9]} 28. Nd2 {[%clk 0:00:10.7]} 28... h5 {[%clk
0:01:29.1]} 29. Re1 {[%clk 0:00:09.2]} 29... h4 {[%clk 0:01:28.4]} 30. h3 {[%clk
0:00:08.2]} 30... Nh5 {[%clk 0:01:27]} 31. Bf2 {[%clk 0:00:06.7]} 31... Bg3
{[%clk 0:01:26.7]} 32. Kg1 {[%clk 0:00:05.9]} 32... Bxf2+ {[%clk 0:01:26.7]} 33.
Kxf2 {[%clk 0:00:06.8]} 33... Qg3+ {[%clk 0:01:26.1]} 34. Kg1 {[%clk 0:00:06.9]}
34... Nf4 {[%clk 0:01:25.2]} 0-1

[Event "*** Titled Tuesday Blitz"]
[Site "Chess.com"]
[Date "2020.11.03"]
[Round "1"]
[White "anon569"]
[Black "FMJoseHerrera"]
[Result "0-1"]
[WhiteElo "2235"]
[BlackElo "2565"]
[TimeControl "180+1"]
[EndTime "10:06:14 PST"]
[Termination "FMJoseHerrera won on time"]

1. e4 {[%clk 0:02:57.4]} 1... c5 {[%clk 0:02:57.1]} 2. Nf3 {[%clk 0:02:56.5]}
2... e6 {[%clk 0:02:56.5]} 3. d4 {[%clk 0:02:49.9]} 3... cxd4 {[%clk 0:02:56.2]}
4. Nxd4 {[%clk 0:02:50.5]} 4... a6 {[%clk 0:02:56]} 5. Bd3 {[%clk 0:02:46.7]}
5... Qc7 {[%clk 0:02:55.3]} 6. Qe2 {[%clk 0:02:45]} 6... b6 {[%clk 0:02:54.5]}
7. O-O {[%clk 0:02:43.7]} 7... Bb7 {[%clk 0:02:53.3]} 8. c4 {[%clk 0:02:43.4]}
8... d6 {[%clk 0:02:52.7]} 9. Nc3 {[%clk 0:02:43.6]} 9... Nd7 {[%clk 0:02:51.8]}
10. f4 {[%clk 0:02:38.9]} 10... Ngf6 {[%clk 0:02:51.1]} 11. b4 {[%clk
0:02:33.9]} 11... Be7 {[%clk 0:02:50.3]} 12. Be3 {[%clk 0:02:27]} 12... h5
{[%clk 0:02:46.1]} 13. h3 {[%clk 0:02:16]} 13... Rc8 {[%clk 0:02:44.4]} 14. Rac1
{[%clk 0:02:12.4]} 14... Qb8 {[%clk 0:02:44]} 15. a3 {[%clk 0:02:03.5]} 15... h4
{[%clk 0:02:42.9]} 16. f5 {[%clk 0:01:07.4]} 16... e5 {[%clk 0:02:37.2]} 17. Nf3
{[%clk 0:01:04.9]} 17... Nh5 {[%clk 0:02:35.7]} 18. Qf2 {[%clk 0:00:56.7]} 18...
Ng3 {[%clk 0:02:34.5]} 19. Rfe1 {[%clk 0:00:55.2]} 19... Qa8 {[%clk 0:02:33.5]}
20. Nd5 {[%clk 0:00:31.7]} 20... Bxd5 {[%clk 0:02:30]} 21. cxd5 {[%clk
0:00:32.6]} 21... Rxc1 {[%clk 0:02:29.5]} 22. Rxc1 {[%clk 0:00:31.3]} 22... Nf6
{[%clk 0:02:24.4]} 23. Bxb6 {[%clk 0:00:19.5]} 23... Nfxe4 {[%clk 0:02:21.9]}
24. Qc2 {[%clk 0:00:19.2]} 24... O-O {[%clk 0:00:57.1]} 25. Bxe4 {[%clk
0:00:17.2]} 25... a5 {[%clk 0:00:57.2]} 0-1

[Event "*** Titled Tuesday Blitz"]
[Site "Chess.com"]
[Date "2020.11.03"]
[Round "1"]
[White "IMJonathanCarlstedt"]
[Black "zurzan"]
[Result "1-0"]
[WhiteElo "2500"]
[BlackElo "2062"]
[TimeControl "180+1"]
[EndTime "10:06:14 PST"]
[Termination "IMJonathanCarlstedt won by checkmate"]

1. d4 {[%clk 0:03:00.9]} 1... d6 {[%clk 0:02:58.8]} 2. Nf3 {[%clk 0:02:58.6]}
2... g6 {[%clk 0:02:57.7]} 3. Bf4 {[%clk 0:02:55.9]} 3... Bg7 {[%clk 0:02:56.9]}
4. e3 {[%clk 0:02:55.8]} 4... f5 {[%clk 0:02:56.5]} 5. h4 {[%clk 0:02:54.1]}
5... Nf6 {[%clk 0:02:54.1]} 6. Nc3 {[%clk 0:02:53.3]} 6... h6 {[%clk 0:02:49.8]}
7. Bd3 {[%clk 0:02:48.7]} 7... c6 {[%clk 0:02:47.2]} 8. e4 {[%clk 0:02:47.3]}
8... e6 {[%clk 0:02:36.4]} 9. e5 {[%clk 0:02:44]} 9... dxe5 {[%clk 0:02:34.9]}
10. Nxe5 {[%clk 0:02:43.9]} 10... Nh5 {[%clk 0:02:11.1]} 11. Nxg6 {[%clk
0:02:36.7]} 11... Nxf4 {[%clk 0:02:06.7]} 12. Nxf4 {[%clk 0:02:37.6]} 12... Qf6
{[%clk 0:01:58]} 13. Qe2 {[%clk 0:02:18.4]} 13... O-O {[%clk 0:01:52]} 14. Bc4
{[%clk 0:02:16.5]} 14... Re8 {[%clk 0:01:48.1]} 15. O-O-O {[%clk 0:02:15]} 15...
b5 {[%clk 0:01:46.4]} 16. Bb3 {[%clk 0:02:11.1]} 16... b4 {[%clk 0:01:45.7]} 17.
Na4 {[%clk 0:01:56.7]} 17... Na6 {[%clk 0:01:30.8]} 18. Nh5 {[%clk 0:01:50]}
18... Qe7 {[%clk 0:01:23.1]} 19. Rh3 {[%clk 0:01:45.9]} 19... Kh8 {[%clk
0:01:00.4]} 20. Rg3 {[%clk 0:01:43.1]} 20... Bf6 {[%clk 0:00:55.1]} 21. Rg6
{[%clk 0:01:32.7]} 21... Bxh4 {[%clk 0:00:40.8]} 22. g3 {[%clk 0:01:30.1]} 22...
Bg5+ {[%clk 0:00:39.8]} 23. f4 {[%clk 0:01:29.5]} 23... Kh7 {[%clk 0:00:38.9]}
24. Rg7+ {[%clk 0:01:28.4]} 24... Qxg7 {[%clk 0:00:39]} 25. Nxg7 {[%clk
0:01:29]} 25... Kxg7 {[%clk 0:00:39.3]} 26. fxg5 {[%clk 0:01:28.9]} 26... hxg5
{[%clk 0:00:40.2]} 27. Qh5 {[%clk 0:01:28.1]} 27... Bd7 {[%clk 0:00:27.2]} 28.
Qxg5+ {[%clk 0:01:26.9]} 28... Kf7 {[%clk 0:00:28.1]} 29. Qxf5+ {[%clk
0:01:26.8]} 29... Ke7 {[%clk 0:00:28]} 30. Qg5+ {[%clk 0:01:26.8]} 30... Kd6
{[%clk 0:00:27.2]} 31. Qe5+ {[%clk 0:01:22.8]} 31... Ke7 {[%clk 0:00:26.8]} 32.
Rh1 {[%clk 0:01:22.1]} 32... Kd8 {[%clk 0:00:26.2]} 33. Rh7 {[%clk 0:01:20.7]}
33... Nb8 {[%clk 0:00:23.3]} 34. Nc5 {[%clk 0:01:18.7]} 34... Kc8 {[%clk
0:00:19.6]} 35. Nxd7 {[%clk 0:01:15.3]} 35... Nxd7 {[%clk 0:00:19.5]} 36. Bxe6
{[%clk 0:01:15.5]} 36... Rd8 {[%clk 0:00:17.4]} 37. Qd6 {[%clk 0:01:14.6]} 37...
Kb7 {[%clk 0:00:11.4]} 38. Bxd7 {[%clk 0:01:15.5]} 38... Kb6 {[%clk 0:00:10]}
39. Qxc6+ {[%clk 0:01:15.1]} 39... Ka5 {[%clk 0:00:09.2]} 40. Qb5# {[%clk
0:01:15.7]} 1-0

[Event "*** Titled Tuesday Blitz"]
[Site "Chess.com"]
[Date "2020.11.03"]
[Round "1"]
[White "juancruzarias"]
[Black "HanSchut"]
[Result "1-0"]
[WhiteElo "2549"]
[BlackElo "2212"]
[TimeControl "180+1"]
[EndTime "10:06:15 PST"]
[Termination "juancruzarias won on time"]

1. e4 {[%clk 0:02:59.3]} 1... c5 {[%clk 0:02:59.8]} 2. Nc3 {[%clk 0:02:59.6]}
2... g6 {[%clk 0:02:59.5]} 3. g3 {[%clk 0:02:57.5]} 3... Bg7 {[%clk 0:02:59.9]}
4. Bg2 {[%clk 0:02:56.7]} 4... e6 {[%clk 0:03:00.5]} 5. d3 {[%clk 0:02:56.5]}
5... Ne7 {[%clk 0:03:01.1]} 6. Be3 {[%clk 0:02:55.6]} 6... d6 {[%clk 0:03:00.7]}
7. Qd2 {[%clk 0:02:53]} 7... Nbc6 {[%clk 0:02:57.8]} 8. h4 {[%clk 0:02:38.3]}
8... h5 {[%clk 0:02:56.7]} 9. Nh3 {[%clk 0:02:38.1]} 9... Nd4 {[%clk 0:02:53]}
10. Nd1 {[%clk 0:02:34.8]} 10... Bd7 {[%clk 0:02:45.5]} 11. c3 {[%clk
0:02:34.7]} 11... Ndc6 {[%clk 0:02:46.2]} 12. O-O {[%clk 0:02:34.3]} 12... O-O
{[%clk 0:02:42.2]} 13. Bh6 {[%clk 0:02:32.4]} 13... b5 {[%clk 0:02:38.8]} 14.
Bxg7 {[%clk 0:02:30.1]} 14... Kxg7 {[%clk 0:02:39.7]} 15. d4 {[%clk 0:02:30.4]}
15... cxd4 {[%clk 0:02:31]} 16. cxd4 {[%clk 0:02:30.2]} 16... d5 {[%clk
0:02:31.3]} 17. exd5 {[%clk 0:02:02.9]} 17... Nxd5 {[%clk 0:02:31.1]} 18. Bxd5
{[%clk 0:01:57.4]} 18... exd5 {[%clk 0:02:32]} 19. Nf4 {[%clk 0:01:57]} 19...
Ne7 {[%clk 0:02:12.3]} 20. Ne3 {[%clk 0:01:54]} 20... Bc6 {[%clk 0:02:01.7]} 21.
Rac1 {[%clk 0:01:53.8]} 21... Qd7 {[%clk 0:01:58.8]} 22. Rc5 {[%clk 0:01:52.6]}
22... Rac8 {[%clk 0:01:56.7]} 23. Rfc1 {[%clk 0:01:51.7]} 23... Bb7 {[%clk
0:01:46]} 24. Qb4 {[%clk 0:01:29.2]} 24... Rxc5 {[%clk 0:01:31.4]} 25. Rxc5
{[%clk 0:01:30.1]} 25... a6 {[%clk 0:01:30.3]} 26. Qc3 {[%clk 0:01:28.8]} 26...
Rc8 {[%clk 0:01:21.3]} 27. Nd3 {[%clk 0:01:22.1]} 27... Nc6 {[%clk 0:01:12.1]}
28. Rxd5 {[%clk 0:01:11.5]} 28... Qe8 {[%clk 0:00:30.2]} 29. Rc5 {[%clk
0:01:09.8]} 29... f6 {[%clk 0:00:24.5]} 30. d5 {[%clk 0:01:08.4]} 30... Ne7
{[%clk 0:00:22]} 31. Rc7 {[%clk 0:01:05.7]} 31... Rxc7 {[%clk 0:00:14.6]} 32.
Qxc7 {[%clk 0:01:05.1]} 1-0

[Event "*** Titled Tuesday Blitz"]
[Site "Chess.com"]
[Date "2020.11.03"]
[Round "1"]
[White "BAS8892"]
[Black "Nemsko"]
[Result "1-0"]
[WhiteElo "2681"]
[BlackElo "2351"]
[TimeControl "180+1"]
[EndTime "10:06:16 PST"]
[Termination "BAS8892 won by resignation"]

1. d4 {[%clk 0:02:58.6]} 1... Nf6 {[%clk 0:02:59.7]} 2. Bf4 {[%clk 0:02:55.4]}
2... d5 {[%clk 0:02:58.6]} 3. e3 {[%clk 0:02:55.2]} 3... e6 {[%clk 0:02:58.9]}
4. Nf3 {[%clk 0:02:54.7]} 4... Bd6 {[%clk 0:02:59.1]} 5. Bg3 {[%clk 0:02:54.5]}
5... O-O {[%clk 0:02:57.2]} 6. Nbd2 {[%clk 0:02:54]} 6... c5 {[%clk 0:02:56]} 7.
c3 {[%clk 0:02:53.7]} 7... Nc6 {[%clk 0:02:56.4]} 8. Bd3 {[%clk 0:02:52.9]} 8...
b6 {[%clk 0:02:55.9]} 9. O-O {[%clk 0:02:51.6]} 9... Bb7 {[%clk 0:02:54.5]} 10.
Qe2 {[%clk 0:02:51.9]} 10... Re8 {[%clk 0:02:52.2]} 11. Ne5 {[%clk 0:02:51.2]}
11... Qc7 {[%clk 0:02:49.6]} 12. f4 {[%clk 0:02:51.2]} 12... Ne7 {[%clk
0:02:46.5]} 13. f5 {[%clk 0:02:49.5]} 13... exf5 {[%clk 0:02:43.2]} 14. Bxf5
{[%clk 0:02:49.2]} 14... Nxf5 {[%clk 0:02:43.8]} 15. Rxf5 {[%clk 0:02:48.5]}
15... Re6 {[%clk 0:02:44.5]} 16. Raf1 {[%clk 0:02:46.6]} 16... a5 {[%clk
0:02:38.4]} 17. R1f2 {[%clk 0:02:45.2]} 17... cxd4 {[%clk 0:02:36.1]} 18. exd4
{[%clk 0:02:45]} 18... Rf8 {[%clk 0:02:32.3]} 19. h3 {[%clk 0:02:16]} 19... Qe7
{[%clk 0:02:04.8]} 20. Qe3 {[%clk 0:02:15.2]} 20... Bxe5 {[%clk 0:01:59.2]} 21.
dxe5 {[%clk 0:02:08.9]} 21... Ne4 {[%clk 0:01:59.3]} 22. Nxe4 {[%clk 0:02:06.6]}
22... dxe4 {[%clk 0:02:00.2]} 23. Rd2 {[%clk 0:01:59.6]} 23... Rd8 {[%clk
0:01:57]} 24. Rd6 {[%clk 0:01:59.5]} 24... b5 {[%clk 0:01:37.4]} 25. Rf2 {[%clk
0:01:57.4]} 25... Rdxd6 {[%clk 0:01:21.2]} 26. exd6 {[%clk 0:01:56.6]} 26... Qd7
{[%clk 0:01:21.2]} 27. Rd2 {[%clk 0:01:55.3]} 27... f5 {[%clk 0:01:18.4]} 28.
Bf4 {[%clk 0:01:54.6]} 28... g6 {[%clk 0:01:18.1]} 29. Qc5 {[%clk 0:01:53.3]}
29... Bc6 {[%clk 0:01:17]} 30. a4 {[%clk 0:01:48.1]} 30... Kf7 {[%clk
0:01:13.2]} 31. axb5 {[%clk 0:01:47.5]} 31... Bxb5 {[%clk 0:01:13.6]} 32. c4
{[%clk 0:01:48]} 32... Bc6 {[%clk 0:01:12.5]} 33. Qxa5 {[%clk 0:01:47.8]} 33...
e3 {[%clk 0:01:10.8]} 34. Re2 {[%clk 0:01:47.9]} 34... g5 {[%clk 0:00:51]} 35.
Bxg5 {[%clk 0:01:42.6]} 35... Qxd6 {[%clk 0:00:50.4]} 36. Qxf5+ {[%clk
0:01:41.8]} 36... Kg8 {[%clk 0:00:47.3]} 37. Rxe3 {[%clk 0:01:41.1]} 37... Rxe3
{[%clk 0:00:38.9]} 38. Bxe3 {[%clk 0:01:40.5]} 38... Qd1+ {[%clk 0:00:38.6]} 39.
Kh2 {[%clk 0:01:40.3]} 39... Qd6+ {[%clk 0:00:35.2]} 40. Qf4 {[%clk 0:01:40.1]}
40... Qxf4+ {[%clk 0:00:32.6]} 41. Bxf4 {[%clk 0:01:40]} 41... Kf7 {[%clk
0:00:32.5]} 42. g4 {[%clk 0:01:39.2]} 42... Ke6 {[%clk 0:00:32.7]} 43. Kg3
{[%clk 0:01:39.1]} 43... Ba4 {[%clk 0:00:32.6]} 44. Kf2 {[%clk 0:01:36.9]} 44...
Bb3 {[%clk 0:00:33]} 45. c5 {[%clk 0:01:37]} 45... Kd5 {[%clk 0:00:33.4]} 46.
Bd6 {[%clk 0:01:37]} 46... Bc2 {[%clk 0:00:32.2]} 47. Ke3 {[%clk 0:01:36.9]}
47... Be4 {[%clk 0:00:30.9]} 48. b4 {[%clk 0:01:36]} 48... Bg2 {[%clk 0:00:31]}
49. h4 {[%clk 0:01:36.2]} 49... Bh3 {[%clk 0:00:31.9]} 50. Kf4 {[%clk
0:01:35.4]} 50... Kc6 {[%clk 0:00:30]} 51. h5 {[%clk 0:01:34.6]} 51... Bf1
{[%clk 0:00:29.6]} 52. g5 {[%clk 0:01:34.6]} 52... Bd3 {[%clk 0:00:29.7]} 53.
Ke5 {[%clk 0:01:34.5]} 53... Be2 {[%clk 0:00:28.9]} 54. g6 {[%clk 0:01:33.7]}
54... hxg6 {[%clk 0:00:28.3]} 55. h6 {[%clk 0:01:34.1]} 55... Bc4 {[%clk
0:00:29.2]} 56. h7 {[%clk 0:01:34.1]} 1-0

[Event "*** Titled Tuesday Blitz"]
[Site "Chess.com"]
[Date "2020.11.03"]
[Round "1"]
[White "mjray79"]
[Black "FairChess_on_YouTube"]
[Result "1/2-1/2"]
[WhiteElo "2474"]
[BlackElo "2982"]
[TimeControl "180+1"]
[EndTime "10:06:18 PST"]
[Termination "Game drawn by repetition"]

1. d4 {[%clk 0:03:00.9]} 1... Nf6 {[%clk 0:02:55.6]} 2. c4 {[%clk 0:02:55.5]}
2... e6 {[%clk 0:02:55]} 3. g3 {[%clk 0:02:54.8]} 3... d5 {[%clk 0:02:51.8]} 4.
Bg2 {[%clk 0:02:54.6]} 4... Bb4+ {[%clk 0:02:51.6]} 5. Bd2 {[%clk 0:02:53.8]}
5... Be7 {[%clk 0:02:50.9]} 6. Nf3 {[%clk 0:02:52.8]} 6... O-O {[%clk
0:02:50.4]} 7. O-O {[%clk 0:02:52.3]} 7... Nbd7 {[%clk 0:02:49.4]} 8. Qc2 {[%clk
0:02:51.9]} 8... c6 {[%clk 0:02:48.5]} 9. Bf4 {[%clk 0:02:51.6]} 9... Ne4 {[%clk
0:02:47.7]} 10. Nc3 {[%clk 0:02:49.7]} 10... g5 {[%clk 0:02:45.2]} 11. Bc1
{[%clk 0:02:37.3]} 11... f5 {[%clk 0:02:45.1]} 12. Nd2 {[%clk 0:02:36.8]} 12...
Bf6 {[%clk 0:02:21.5]} 13. Qd3 {[%clk 0:02:33.6]} 13... Nb6 {[%clk 0:02:00.9]}
14. cxd5 {[%clk 0:02:31.7]} 14... exd5 {[%clk 0:01:59.7]} 15. f3 {[%clk
0:02:22.6]} 15... Nxd2 {[%clk 0:01:51.7]} 16. Bxd2 {[%clk 0:02:23.5]} 16... Nc4
{[%clk 0:01:51.1]} 17. b3 {[%clk 0:02:23.3]} 17... Nxd2 {[%clk 0:01:45.4]} 18.
Qxd2 {[%clk 0:02:24.2]} 18... Kh8 {[%clk 0:01:32]} 19. Rad1 {[%clk 0:02:22.4]}
19... Bg7 {[%clk 0:01:21.5]} 20. e4 {[%clk 0:02:22.3]} 20... f4 {[%clk
0:01:02.6]} 21. Ne2 {[%clk 0:02:10.3]} 21... fxg3 {[%clk 0:00:54.6]} 22. Nxg3
{[%clk 0:01:58.3]} 22... Be6 {[%clk 0:00:47.9]} 23. e5 {[%clk 0:01:48.1]} 23...
Rf4 {[%clk 0:00:41.3]} 24. Nh5 {[%clk 0:01:40.1]} 24... Rh4 {[%clk 0:00:41.3]}
25. Nxg7 {[%clk 0:01:39.9]} 25... Kxg7 {[%clk 0:00:42.2]} 26. f4 {[%clk
0:01:40.2]} 26... gxf4 {[%clk 0:00:35.6]} 27. Rxf4 {[%clk 0:01:41.1]} 27... Rxf4
{[%clk 0:00:33.4]} 28. Qxf4 {[%clk 0:01:41.9]} 28... Qe7 {[%clk 0:00:32.5]} 29.
Rf1 {[%clk 0:01:37.2]} 29... Rf8 {[%clk 0:00:29.9]} 30. Qg3+ {[%clk 0:01:22.7]}
30... Kh8 {[%clk 0:00:29.9]} 31. Rxf8+ {[%clk 0:01:22.7]} 31... Qxf8 {[%clk
0:00:30.8]} 32. Qg5 {[%clk 0:01:22.8]} 32... Qf5 {[%clk 0:00:27.8]} 33. Qd8+
{[%clk 0:01:14.6]} 33... Kg7 {[%clk 0:00:27.4]} 34. Qe7+ {[%clk 0:01:14.3]}
34... Qf7 {[%clk 0:00:24.4]} 35. Qg5+ {[%clk 0:01:13.2]} 35... Qg6 {[%clk
0:00:24.5]} 36. Qe7+ {[%clk 0:01:12]} 36... Qf7 {[%clk 0:00:24]} 37. Qg5+ {[%clk
0:01:11.7]} 37... Qg6 {[%clk 0:00:17.4]} 38. Qe7+ {[%clk 0:01:11.6]} 38... Qf7
{[%clk 0:00:11.2]} 1/2-1/2

[Event "*** Titled Tuesday Blitz"]
[Site "Chess.com"]
[Date "2020.11.03"]
[Round "1"]
[White "IceBelka"]
[Black "Crazy_girl99"]
[Result "0-1"]
[WhiteElo "2130"]
[BlackElo "2521"]
[TimeControl "180+1"]
[EndTime "10:06:19 PST"]
[Termination "Crazy_girl99 won by resignation"]

1. Nf3 {[%clk 0:02:59.1]} 1... d5 {[%clk 0:02:59.1]} 2. g3 {[%clk 0:02:57.9]}
2... Nf6 {[%clk 0:02:59.5]} 3. Bg2 {[%clk 0:02:56.8]} 3... c5 {[%clk 0:02:59.6]}
4. d4 {[%clk 0:02:55.6]} 4... cxd4 {[%clk 0:02:59.6]} 5. Nxd4 {[%clk 0:02:56.5]}
5... Nc6 {[%clk 0:02:59.7]} 6. Nxc6 {[%clk 0:02:52.4]} 6... bxc6 {[%clk
0:02:59.5]} 7. c4 {[%clk 0:02:53]} 7... e6 {[%clk 0:02:56.5]} 8. O-O {[%clk
0:02:51]} 8... Be7 {[%clk 0:02:55]} 9. b3 {[%clk 0:02:51]} 9... O-O {[%clk
0:02:54.7]} 10. Bb2 {[%clk 0:02:51.3]} 10... a5 {[%clk 0:02:53.8]} 11. Nc3
{[%clk 0:02:48.9]} 11... Ba6 {[%clk 0:02:52.4]} 12. cxd5 {[%clk 0:02:40.8]}
12... cxd5 {[%clk 0:02:51.8]} 13. Rc1 {[%clk 0:02:39.6]} 13... Rc8 {[%clk
0:02:45.8]} 14. Qd4 {[%clk 0:02:29.2]} 14... Bc5 {[%clk 0:02:40.3]} 15. Qh4
{[%clk 0:02:27.5]} 15... h6 {[%clk 0:02:33.5]} 16. Na4 {[%clk 0:02:19.1]} 16...
Be7 {[%clk 0:02:33]} 17. Rfe1 {[%clk 0:02:05.5]} 17... Rxc1 {[%clk 0:02:23.5]}
18. Bxc1 {[%clk 0:01:57.3]} 18... Bb4 {[%clk 0:02:22.6]} 19. Rf1 {[%clk
0:01:43.3]} 19... Bxe2 {[%clk 0:02:20.9]} 20. Bb2 {[%clk 0:01:39.5]} 20... Bxf1
{[%clk 0:02:18.5]} 21. Bxf1 {[%clk 0:01:40.4]} 21... Ne4 {[%clk 0:02:10.2]} 22.
Qg4 {[%clk 0:01:33.4]} 22... Qg5 {[%clk 0:02:09.5]} 23. Qe2 {[%clk 0:01:25.7]}
23... Rc8 {[%clk 0:02:03.2]} 24. h4 {[%clk 0:01:24.6]} 24... Qg6 {[%clk
0:02:02]} 25. Bg2 {[%clk 0:01:23.4]} 25... Nd6 {[%clk 0:01:11.8]} 26. Be5 {[%clk
0:00:38.8]} 26... Rc2 {[%clk 0:01:08.4]} 27. Qa6 {[%clk 0:00:37.2]} 27... Qf5
{[%clk 0:01:03.7]} 28. Bd4 {[%clk 0:00:28]} 28... Ne4 {[%clk 0:00:56.2]} 29. Qa7
{[%clk 0:00:23.6]} 29... Be1 {[%clk 0:00:49.9]} 30. Bxe4 {[%clk 0:00:19]} 30...
Qxe4 {[%clk 0:00:46.6]} 31. Qb8+ {[%clk 0:00:17.6]} 31... Kh7 {[%clk 0:00:45.6]}
32. Qe5 {[%clk 0:00:17.3]} 32... Qxe5 {[%clk 0:00:45.2]} 33. Bxe5 {[%clk
0:00:17.8]} 33... Bxf2+ {[%clk 0:00:45.3]} 0-1